fUSD/lending_fUSD_20250407
["ID","MTS","AMOUNT","RATE_DAILY","PERIOD"]
[357363230,1744019468956,-500.0,0.00054794,120]
[357363231,1744019468965,-500.0,0.00054794,120]
[357363232,1744019468975,-588.44,0.00054794,120]
[357363233,1744019468984,-535.7,0.00054794,120]
[357363234,1744019468993,-500.0,0.00054794,120]
[357363235,1744019469003,-500.0,0.00054794,120]
[357363236,1744019469012,-500.0,0.00054794,120]
[357363237,1744019469022,-500.0,0.00054794,120]
[357363238,1744019469031,-500.0,0.00054794,120]
[357363239,1744019469040,-500.0,0.00054794,120]
[357363240,1744019469049,-500.0,0.00054794,120]
[357363241,1744019469059,-500.0,0.00054794,120]
[357363242,1744019469068,-517.90063977,0.00054794,120]
[357363243,1744019469077,-500.0,0.00054794,120]
[357363244,1744019469086,-500.0,0.00054794,120]
[357363245,1744019469095,-500.0,0.00054794,120]
[357363246,1744019469104,-710.43,0.00054794,120]
[357363247,1744019469115,-500.0,0.00054794,120]
[357363248,1744019469123,-500.0,0.00054794,120]
[357363249,1744019469132,-500.0,0.00054794,120]
[357363250,1744019469142,-500.0,0.00054794,120]
[357363251,1744019469151,-522.12,0.00054794,120]
[357363252,1744019469160,-971.81,0.00054794,120]
[357363253,1744019469169,-500.0,0.00054794,120]
[357363254,1744019469179,-585.32,0.00054794,120]
[357363255,1744019469188,-602.56,0.00054794,120]
[357363256,1744019469197,-500.0,0.00054794,120]
[357363257,1744019469207,-500.0,0.00054794,120]
[357363258,1744019469216,-500.0,0.00054794,120]
[357363259,1744019469226,-502.86085126,0.00054794,120]
[357363260,1744019469235,-500.0,0.00054794,120]
[357363261,1744019469244,-500.0,0.00054794,120]
[357363262,1744019469253,-1571.66,0.00054794,120]
[357363263,1744019469262,-500.0,0.00054794,120]
[357363264,1744019469271,-500.0,0.00054794,120]
[357363265,1744019469280,-502.60838207,0.00054794,120]
[357363266,1744019469289,-500.0,0.00054794,120]
[357363267,1744019469298,-500.0,0.00054794,120]
[357363268,1744019469308,-500.0,0.00054794,120]
[357363269,1744019469317,-500.0,0.00054794,120]
[357363270,1744019469326,-500.0,0.00054794,120]
[357363271,1744019469335,-500.0,0.00054794,120]
[357363272,1744019469345,-500.0,0.00054794,120]
[357363273,1744019469354,-533.76,0.00054794,120]
[357363274,1744019469363,-500.0,0.00054794,120]
[357363275,1744019469372,-500.0,0.00054794,120]
[357363276,1744019469381,-500.0,0.00054794,120]
[357363277,1744019469390,-500.0,0.00054794,120]
[357363278,1744019469400,-616.21,0.00054794,120]
[357363279,1744019469410,-500.0,0.00054794,120]
[357363280,1744019469420,-500.0,0.00054794,120]
[357363281,1744019469429,-638.09870744,0.00054794,120]
[357363282,1744019469439,-500.0,0.00054794,120]
[357363283,1744019469449,-503.45,0.00054794,120]
[357363284,1744019469459,-500.0,0.00054794,120]
[357363285,1744019469469,-500.0,0.00054794,120]
[357363286,1744019469478,-513.46466919,0.00054794,120]
[357363287,1744019469487,-500.0,0.00054794,120]
[357363288,1744019469497,-500.0,0.00054794,120]
[357363289,1744019469506,-500.0,0.00054794,120]
[357363290,1744019469518,-500.0,0.00054794,120]
[357363291,1744019469535,-628.32,0.00054794,120]
[357363292,1744019469553,-500.0,0.00054794,120]
[357363293,1744019469562,-701.74,0.00054794,120]
[357363294,1744019469572,-500.0,0.00054794,120]
[357363295,1744019469582,-500.0,0.00054794,120]
[357363296,1744019469591,-500.0,0.00054794,120]
[357363297,1744019469600,-500.0,0.00054794,120]
[357363298,1744019469610,-500.0,0.00054794,120]
[357363299,1744019469621,-500.0,0.00054794,120]
[357363300,1744019469631,-500.0,0.00054794,120]
[357363301,1744019469640,-499.30219542,0.00054794,120]
[357363302,1744019469649,-500.0,0.00054794,120]
[357363303,1744019469660,-500.0,0.00054794,120]
[357363304,1744019469670,-500.0,0.00054794,120]
[357363305,1744019469680,-500.0,0.00054794,120]
[357363306,1744019469689,-769.19,0.00054794,120]
[357363307,1744019469700,-500.0,0.00054794,10]
[357363308,1744019469710,-946.05,0.00054794,120]
[357363309,1744019469719,-500.0,0.00054794,120]
[357363310,1744019469729,-587.87,0.00054794,120]
[357363311,1744019469737,-500.0,0.00054794,120]
[357363312,1744019469747,-500.0,0.00054794,120]
[357363313,1744019469757,-500.0,0.00054794,120]
[357363314,1744019469766,-581.61,0.00054794,120]
[357363315,1744019469775,-500.0,0.00054794,120]
[357363316,1744019469784,-675.71,0.00054794,120]
[357363317,1744019469794,-500.0,0.00054794,120]
[357363318,1744019469803,-500.0,0.00054794,120]
[357363319,1744019469812,-520.53432586,0.00054794,120]
[357363320,1744019469821,-500.0,0.00054794,120]
[357363321,1744019469830,-576.58,0.00054794,120]
[357363322,1744019469839,-500.0,0.00054794,120]
[357363323,1744019469848,-500.0,0.00054794,120]
[357363324,1744019469857,-508.10614737,0.00054794,120]
[357363325,1744019469866,-500.0,0.00054794,120]
[357363326,1744019469875,-500.0,0.00054794,120]
[357363327,1744019469885,-500.0,0.00054794,120]
[357363328,1744019469894,-500.0,0.00054794,120]
[357363329,1744019469903,-500.0,0.00054794,120]
[357363330,1744019469915,-500.0,0.00054794,120]
[357363331,1744019469925,-500.0,0.00054794,120]
[357363332,1744019469934,-500.0,0.00054794,120]
[357363333,1744019469943,-500.0,0.00054794,120]
[357363334,1744019469953,-500.0,0.00054794,120]
[357363335,1744019469962,-500.0,0.00054794,120]
[357363336,1744019469971,-500.0,0.00054794,120]
[357363337,1744019469981,-500.0,0.00054794,120]
[357363338,1744019469990,-500.0,0.00054794,120]
[357363339,1744019469999,-500.0,0.00054794,120]
[357363340,1744019470009,-527.49992478,0.00054794,120]
[357363341,1744019470018,-629.43,0.00054794,120]
[357363342,1744019470027,-556.01930735,0.00054794,120]
[357363343,1744019470221,-500.0,0.00054794,120]
[357363344,1744019470231,-524.6,0.00054794,120]
[357363345,1744019470240,-506.19,0.00054794,120]
[357363346,1744019470249,-831.91,0.00054794,30]
[357363347,1744019470258,-500.0,0.00054794,120]
[357363348,1744019470268,-500.0,0.00054794,120]
[357363349,1744019470277,-512.33875657,0.00054794,120]
[357363350,1744019470286,-500.0,0.00054794,120]
[357363351,1744019470295,-500.0,0.00054794,120]
[357363352,1744019470304,-500.0,0.00054794,120]
[357363353,1744019470314,-500.0,0.00054794,120]
[357363354,1744019470324,-720.15,0.00054794,120]
[357363355,1744019470333,-517.01319643,0.00054794,120]
[357363356,1744019470342,-500.0,0.00054794,120]
[357363357,1744019470351,-500.0,0.00054794,120]
[357363358,1744019470360,-500.0,0.00054794,120]
[357363359,1744019470369,-500.0,0.00054794,120]
[357363360,1744019470378,-500.0,0.00054794,120]
[357363361,1744019470387,-500.0,0.00054794,120]
[357363362,1744019470396,-509.25592802,0.00054794,120]
[357363363,1744019470405,-500.0,0.00054794,120]
[357363364,1744019470416,-500.0,0.00054794,120]
[357363365,1744019470425,-500.0,0.00054794,120]
[357363366,1744019470435,-500.0,0.00054794,120]
[357363367,1744019470444,-554.72178625,0.00054794,120]
[357363368,1744019470453,-810.05,0.00054794,120]
[357363369,1744019470463,-500.0,0.00054794,120]
[357363370,1744019470472,-2000.0,0.00054794,120]
[357363371,1744019470481,-500.0,0.00054794,120]
[357363372,1744019470491,-746.8,0.00054794,120]
[357363373,1744019470500,-500.0,0.00054794,120]
[357363374,1744019470509,-500.0,0.00054794,120]
[357363375,1744019470518,-500.0,0.00054794,120]
[357363376,1744019470528,-597.1,0.00054794,120]
[357363377,1744019470537,-500.58,0.00054794,120]
[357363378,1744019470546,-500.0,0.00054794,120]
[357363379,1744019470555,-830.91,0.00054794,120]
[357363380,1744019470564,-500.0,0.00054794,120]
[357363381,1744019470574,-505.16148182,0.00054794,120]
[357363382,1744019470583,-500.0,0.00054794,120]
[357363383,1744019470592,-500.0,0.00054794,120]
[357363384,1744019470602,-500.0,0.00054794,120]
[357363385,1744019470611,-301.79500253,0.00054794,120]
[357363386,1744019470621,-500.0,0.00054794,120]
[357363387,1744019470631,-500.0,0.00054794,120]
[357363388,1744019470640,-500.0,0.00054794,120]
[357363389,1744019470651,-618.20683828,0.00054794,120]
[357363390,1744019470666,-500.0,0.00054794,120]
[357363391,1744019470675,-500.0,0.00054794,120]
[357363392,1744019470685,-501.81808249,0.00054794,120]
[357363393,1744019470694,-327.2592775,0.00054794,120]
[357363394,1744019470705,-500.0,0.00054794,120]
[357363395,1744019470714,-500.0,0.00054794,120]
[357363396,1744019470724,-500.0,0.00054794,120]
[357363397,1744019470734,-500.0,0.00054794,30]
[357363398,1744019470744,-500.0,0.00054794,120]
[357363399,1744019470753,-502.60902142,0.00054794,120]
[357363400,1744019470764,-500.0,0.00054794,120]
[357363401,1744019470775,-510.14525114,0.00054794,120]
[357363402,1744019470785,-237.1977439,0.00054794,120]
[357363403,1744019470795,-718.28,0.00054794,120]
[357363404,1744019470804,-500.0,0.00054794,120]
[357363405,1744019470814,-500.0,0.00054794,120]
[357363406,1744019470823,-546.58,0.00054794,120]
[357363407,1744019470833,-500.0,0.00054794,120]
[357363408,1744019470842,-500.0,0.00054794,120]
[357363409,1744019470851,-500.0,0.00054794,120]
[357363410,1744019470861,-500.0,0.00054794,120]
[357363411,1744019470870,-500.0,0.00054794,120]
[357363412,1744019470880,-500.0,0.00054794,120]
[357363413,1744019470889,-500.0,0.00054794,120]
[357363414,1744019470898,-500.0,0.00054794,120]
[357363415,1744019470908,-500.0,0.00054794,120]
[357363416,1744019470919,-859.21,0.00054794,120]
[357363417,1744019470928,-514.00650799,0.00054794,120]
[357363418,1744019470938,-500.0,0.00054794,120]
[357363419,1744019470947,-519.82,0.00054794,120]
[357363420,1744019470957,-500.91232025,0.00054794,120]
[357363421,1744019470966,-500.0,0.00054794,120]
[357363422,1744019470976,-500.0,0.00054794,120]
[357363423,1744019470986,-500.0,0.00054794,120]
[357363424,1744019470995,-500.0,0.00054794,120]
[357363425,1744019471004,-500.0,0.00054794,120]
[357363426,1744019471013,-500.0,0.00054794,120]
[357363427,1744019471022,-508.78327476,0.00054794,120]
[357363428,1744019471031,-500.0,0.00054794,120]
[357363429,1744019471040,-516.10493305,0.00054794,120]
[357363430,1744019471049,-500.0,0.00054794,120]
[357363431,1744019471058,-501.78901378,0.00054794,120]
[357363432,1744019471071,-528.94917379,0.00054794,120]
[357363433,1744019471079,-500.0,0.00054794,120]
[357363434,1744019471089,-668.94,0.00054794,120]
[357363435,1744019471098,-500.0,0.00054794,120]
[357363436,1744019471108,-500.0,0.00054794,120]
[357363437,1744019471117,-501.1126127,0.00054794,120]
[357363438,1744019471127,-505.03568166,0.00054794,120]
[357363439,1744019471136,-708.29,0.00054794,120]
[357363440,1744019471145,-551.04,0.00054794,120]
[357363441,1744019471154,-268.65453893,0.00054794,120]
[357363442,1744019471167,-500.0,0.00054794,120]
[357363443,1744019471176,-500.0,0.00054794,120]
[357363444,1744019471185,-500.0,0.00054794,120]
[357363445,1744019471197,-500.0,0.00054794,120]
[357363446,1744019471206,-500.0,0.00054794,120]
[357363447,1744019471215,-500.0,0.00054794,120]
[357363448,1744019471225,-500.0,0.00054794,120]
[357363449,1744019471235,-553.61693518,0.00054794,120]
[357363450,1744019471244,-502.60960082,0.00054794,120]
[357363451,1744019471253,-500.0,0.00054794,120]
[357363452,1744019471263,-503.61256628,0.00054794,120]
[357363453,1744019471272,-500.0,0.00054794,120]
[357363454,1744019471281,-500.0,0.00054794,120]
[357363455,1744019471291,-500.0,0.00054794,120]
[357363456,1744019471300,-2000.0,0.00054794,2]
[357363457,1744019471309,-500.0,0.00054794,120]
[357363458,1744019471318,-500.0,0.00054794,120]
[357363459,1744019471328,-536.67,0.00054794,120]
[357363460,1744019471337,-500.0,0.00054794,120]
[357363461,1744019471346,-673.52,0.00054794,120]
[357363462,1744019471355,-534.76449251,0.00054794,120]
[357363463,1744019471364,-500.0,0.00054794,120]
[357363464,1744019471373,-826.44,0.00054794,120]
[357363465,1744019471382,-500.0,0.00054794,120]
[357363466,1744019471391,-520.83,0.00054794,120]
[357363467,1744019471402,-500.0,0.00054794,120]
[357363468,1744019471412,-500.0,0.00054794,120]
[357363469,1744019471422,-500.0,0.00054794,120]
[357363470,1744019471431,-500.0,0.00054794,120]
[357363471,1744019471440,-500.0,0.00054794,120]
[357363472,1744019471450,-192.76529611,0.00054794,120]
[357363473,1744019471460,-511.62202367,0.00054794,120]
[357363474,1744019471470,-511.23,0.00054794,120]
[357363475,1744019471479,-528.45,0.00054794,120]
[357363476,1744019471489,-500.0,0.00054794,120]
[357363477,1744019471498,-698.23,0.00054794,120]
[357363478,1744019471508,-500.0,0.00054794,120]
[357363479,1744019471517,-500.0,0.00054794,120]
[357363480,1744019471527,-500.0,0.00054794,120]
[357363481,1744019471536,-500.0,0.00054794,120]
[357363482,1744019471546,-500.0,0.00054794,120]
[357363483,1744019471555,-500.0,0.00054794,120]
[357363484,1744019471564,-500.0,0.00054794,120]
[357363485,1744019471573,-500.0,0.00054794,120]
[357363486,1744019471582,-1332.15,0.00054794,120]
[357363487,1744019471592,-500.0,0.00054794,120]
[357363488,1744019471601,-500.0,0.00054794,120]
[357363489,1744019471611,-624.85031018,0.00054794,120]
[357363490,1744019471625,-500.0,0.00054794,120]
[357363491,1744019471634,-1060.21,0.00054794,120]
[357363492,1744019471643,-500.0,0.00054794,90]
[357363493,1744019471652,-640.45,0.00054794,120]
[357363494,1744019471664,-500.0,0.00054794,120]
[357363495,1744019471673,-513.48808021,0.00054794,120]
[357363496,1744019471684,-500.0,0.00054794,120]
[357363497,1744019471695,-562.5,0.00054794,120]
[357363498,1744019471705,-500.0,0.00054794,120]
[357363499,1744019471713,-504.84,0.00054794,120]
[357363500,1744019471723,-502.17636262,0.00054794,120]
[357363501,1744019471732,-500.0,0.00054794,120]
[357363502,1744019471741,-761.6,0.00054794,120]
[357363503,1744019471750,-500.0,0.00054794,120]
[357363504,1744019471759,-92.70962478,0.00054794,120]
[357363505,1744019472443,-16.85209249,0.00027,2]
[357363506,1744019472455,-433.14790751,0.00027,2]
[357363507,1744019472465,-500.0,0.00029,2]
[357363508,1744019472474,-118.82186911,0.00041096,31]
[357363509,1744019472498,-381.17813089,0.00041096,31]
[357363510,1744019472508,-315.82186911,0.00041096,31]
[357363511,1744019473140,-1.09099918,0.00041096,31]
[357363512,1744019523298,200.0,0.00029798,30]
[357363513,1744019610832,322.92996192,0.0001,120]
[357363517,1744019823770,157.0,0.00029798,30]
[357363518,1744020017353,1500.0,0.00032877,120]
[357363519,1744020338210,364.58,0.00032932,120]
[357363520,1744020436094,-150.0,0.00021917,2]
[357363521,1744020436116,-936.2,0.00021917,2]
[357363522,1744020436137,-150.0,0.00023287,2]
[357363523,1744020436158,-150.0,0.00024657,2]
[357363524,1744020436179,-150.0,0.00026027,2]
[357363525,1744020436200,-165.44,0.00026849,2]
[357363526,1744020436221,-150.0,0.00027397,2]
[357363527,1744020436241,-150.0,0.00028767,2]
[357363528,1744020436261,-49.66016562,0.00028767,2]
[357363529,1744020437090,-401.04983438,0.00028767,2]
[357363530,1744020437112,-250.0,0.00029297,2]
[357363531,1744020437133,-764.85131948,0.00029799,2]
[357363532,1744020453129,-336.98049559,0.00029799,2]
[357363533,1744020511219,255.14,0.00032415,120]
[357363534,1744020545111,-500.0,0.00025,2]
[357363535,1744020545132,-436.33358493,0.00029799,2]
[357363536,1744020545155,-1518.61335707,0.00029799,2]
[357363537,1744020551410,-150.93774293,0.00029799,2]
[357363538,1744020551432,-858.1454,0.00029799,2]
[357363539,1744020551457,-19999.99,0.00029799,2]
[357363540,1744020551486,-500.0,0.0003,2]
[357363541,1744020551511,-150.0,0.00030136,2]
[357363542,1744020551536,-550.0,0.00031,2]
[357363543,1744020551574,-150.0,0.00031506,2]
[357363544,1744020551603,-200.0,0.00032003,2]
[357363545,1744020551629,-164.26,0.00032087,2]
[357363546,1744020551653,-500.0,0.00032471,2]
[357363547,1744020551677,-1000.0,0.00032483,2]
[357363548,1744020551703,-2000.0,0.00032522,2]
[357363549,1744020551727,-165.44,0.00032646,2]
[357363550,1744020551750,-150.0,0.00032684,2]
[357363551,1744020551774,-303.7396,0.000327,2]
[357363552,1744020551798,-749.79,0.00032794,2]
[357363553,1744020551819,-774.1127352,0.00032799,2]
[357363554,1744020551839,-610.0,0.000328,2]
[357363555,1744020551860,-618.47,0.000328,2]
[357363556,1744020551880,-250.0,0.000328,2]
[357363557,1744020551902,-1820.99,0.000328,2]
[357363558,1744020551922,-10665.78606187,0.000328,2]
[357363559,1744020558128,-2061.56933813,0.000328,2]
[357363560,1744020558149,-1820.99,0.00032808,2]
[357363561,1744020558169,-1820.99,0.00032817,2]
[357363562,1744020558190,-1820.99,0.00032825,2]
[357363563,1744020558211,-543.47843787,0.00032834,2]
[357363564,1744020558246,-1277.51156213,0.00032834,2]
[357363565,1744020558269,-1820.99,0.00032843,2]
[357363566,1744020558293,-1820.99,0.00032851,2]
[357363567,1744020558316,-1820.99,0.0003286,2]
[357363568,1744020558339,-1820.99,0.00032869,2]
[357363569,1744020558360,-1820.99,0.00032877,2]
[357363570,1744020558382,-1820.99,0.00032886,2]
[357363571,1744020558406,-10569.8928,0.0003289,2]
[357363572,1744020558428,-1000.0,0.0003289,2]
[357363573,1744020558449,-1820.99,0.00032895,2]
[357363574,1744020558469,-192.02926471,0.000329,13]
[357363575,1744020558490,-1820.99,0.00032903,2]
[357363576,1744020558512,-166.66,0.0003291,2]
[357363577,1744020558532,-1820.99,0.00032912,2]
[357363578,1744020558554,-1609.98,0.00032913,2]
[357363579,1744020558576,-1820.99,0.0003292,2]
[357363580,1744020558597,-1820.99,0.00032929,2]
[357363581,1744020558619,-113.98169316,0.00032938,2]
[357363582,1744020561105,-1707.00830684,0.00032938,2]
[357363583,1744020561130,-1820.99,0.00032946,2]
[357363584,1744020561152,-1820.99,0.00032955,2]
[357363585,1744020561175,-1820.99,0.00032964,2]
[357363586,1744020561196,-19321.75482918,0.00032988,2]
[357363587,1744020561217,-23900.0,0.00032998,2]
[357363588,1744020561237,-600.0,0.00033,2]
[357363589,1744020561258,-4235.76200891,0.0003304,2]
[357363590,1744020563317,-764.24799109,0.0003304,2]
[357363591,1744020563337,-151.34,0.00033457,2]
[357363592,1744020563357,-500.0,0.000338,5]
[357363593,1744020563377,-166.66,0.00033996,2]
[357363594,1744020563396,-392.78813176,0.0003442,7]
[357363595,1744020563415,-15703.7311,0.00034421,2]
[357363596,1744020563434,-268.6891,0.00034421,2]
[357363597,1744020563454,-618.47,0.0003444,2]
[357363598,1744020563473,-2500.0,0.00034473,2]
[357363599,1744020563495,-584.3897,0.00034473,2]
[357363600,1744020563516,-3153.17924439,0.00034473,2]
[357363601,1744020563535,-3221.27,0.00034493,14]
[357363602,1744020563557,-200.0,0.000345,2]
[357363603,1744020563577,-1733.64461276,0.00034521,2]
[357363604,1744020574403,-118004.42387965,0.00034521,2]
[357363605,1744020574425,-500.0,0.00034573,2]
[357363606,1744020574447,-650.0,0.00035,2]
[357363607,1744020574468,-500.0,0.00035,2]
[357363608,1744020574490,-166.66,0.00035082,2]
[357363609,1744020574512,-3341.326,0.00035203,41]
[357363610,1744020574534,-168.818,0.00035203,41]
[357363611,1744020574555,-733.11,0.00035543,2]
[357363612,1744020574581,-200.0,0.00035688,120]
[357363613,1744020574602,-276.49,0.00035812,2]
[357363614,1744020574624,-207.4,0.00035869,2]
[357363615,1744020574645,-618.47,0.0003608,2]
[357363616,1744020574666,-164.26,0.00036098,2]
[357363617,1744020574687,-166.66,0.00036169,2]
[357363618,1744020574709,-500.0,0.00036347,3]
[357363619,1744020574734,-255.14,0.00036467,120]
[357363620,1744020574755,-3153.17924432,0.0003672,2]
[357363621,1744020574778,-700.0,0.00037,2]
[357363622,1744020574799,-152.833037,0.00037,7]
[357363623,1744020574822,-606.270794,0.00037,7]
[357363624,1744020574843,-606.270794,0.00037,7]
[357363625,1744020574863,-294.35671,0.00037,7]
[357363626,1744020574883,-294.35671,0.00037,7]
[357363627,1744020574904,-151.0,0.00037,7]
[357363628,1744020574924,-151.0,0.00037,7]
[357363629,1744020574945,-1907.48423397,0.000372,103]
[357363630,1744020574969,-1907.48423393,0.000372,103]
[357363631,1744020574992,-215.0738,0.00037238,2]
[357363632,1744020575014,-166.66,0.00037255,2]
[357363633,1744020575035,-364.58,0.0003741,120]
[357363634,1744020575056,-618.47,0.0003772,2]
[357363635,1744020575084,-685.317099,0.00038,7]
[357363636,1744020575105,-685.317099,0.00038,7]
[357363637,1744020575126,-606.270794,0.00038,7]
[357363638,1744020575147,-606.270794,0.00038,7]
[357363639,1744020575168,-294.35671,0.00038,7]
[357363640,1744020575189,-294.35671,0.00038,7]
[357363641,1744020575209,-151.0,0.00038,7]
[357363642,1744020575229,-151.0,0.00038,7]
[357363643,1744020575250,-198.5297873,0.00038,120]
[357363644,1744020575272,-619.19359831,0.00038,120]
[357363645,1744020575294,-166.66,0.00038341,2]
[357363646,1744020575319,-165.44,0.00038443,2]
[357363647,1744020575340,-223.0315306,0.00038607,2]
[357363648,1744020575361,-3153.17924432,0.00038968,2]
[357363649,1744020575382,-618.47,0.00039359,2]
[357363650,1744020575402,-231.28369723,0.00039976,2]
[357363651,1744020575423,-500.0,0.0004,120]
[357363652,1744020575442,-198.5297873,0.0004,120]
[357363653,1744020575696,-619.19359831,0.0004,120]
[357363654,1744020575717,-434.62863859,0.00040052,2]
[357363655,1744020575737,-164.26,0.00040109,2]
[357363656,1744020575757,-780.75023426,0.00040202,2]
[357363657,1744020575778,-255.14,0.00040519,120]
[357363658,1744020575798,-184.67798686,0.00041096,2]
[357363659,1744020575821,-200.0,0.00041096,20]
[357363660,1744020575841,-200.0,0.00041096,20]
[357363661,1744020575861,-200.0,0.00041096,20]
[357363662,1744020575882,-3153.17924432,0.00041215,15]
[357363663,1744020575902,-239.84119403,0.00041345,2]
[357363664,1744020575922,-250.94210447,0.00041719,2]
[357363665,1744020575942,-1561.50046853,0.00041853,2]
[357363666,1744020575965,-364.58,0.00041888,120]
[357363667,1744020575992,-300.0,0.00042,120]
[357363668,1744020576019,-1907.48423393,0.000423,120]
[357363669,1744020576041,-248.71531821,0.00042714,2]
[357363670,1744020576067,-190.27446174,0.00042822,28]
[357363671,1744020576088,-883.24,0.00042876,2]
[357363672,1744020576109,-17851.41445351,0.00042903,2]
[357363673,1744020576130,-685.317099,0.00042922,14]
[357363674,1744020576152,-685.317099,0.00042922,14]
[357363675,1744020576173,-606.270794,0.00042922,14]
[357363676,1744020576194,-606.270794,0.00042922,14]
[357363677,1744020576215,-294.35671,0.00042922,14]
[357363678,1744020576238,-294.35671,0.00042922,14]
[357363679,1744020576259,-151.0,0.00042922,14]
[357363680,1744020576279,-151.0,0.00042922,14]
[357363681,1744020576302,-7932.93725274,0.00042961,15]
[357363682,1744020576326,-12462.2181367,0.0004299,3]
[357363683,1744020576348,-397.0595746,0.00043,120]
[357363684,1744020576374,-500.0,0.00043,100]
[357363685,1744020576395,-1238.38719662,0.00043,120]
[357363686,1744020576415,-503.0990967,0.00043,10]
[357363687,1744020576435,-300.0,0.00043061,2]
[357363688,1744020576457,-200.0,0.00043075,7]
[357363689,1744020576478,-777.46,0.00043089,2]
[357363690,1744020576499,-1195.28,0.0004342,2]
[357363691,1744020576521,-3153.17924432,0.00043463,15]
[357363692,1744020576542,-737.42146284,0.00043562,120]
[357363693,1744020576567,-1084.2375004,0.00043679,2]
[357363694,1744020576589,-1852.42,0.00043839,120]
[357363695,1744020576612,-300.0,0.00044,120]
[357363696,1744020576634,-257.91778498,0.00044083,2]
[357363697,1744020576655,-164.26,0.0004412,2]
[357363698,1744020576677,-165.44,0.00044239,2]
[357363699,1744020576698,-7932.93725266,0.00044265,15]
[357363700,1744020576720,-255.14,0.00044571,120]
[357363701,1744020576741,-200.0,0.00044584,2]
[357363702,1744020576762,-172.68,0.00044602,2]
[357363703,1744020576782,-1000.0,0.00044648,2]
[357363704,1744020576803,-151.0,0.00045,120]
[357363705,1744020576828,-883.24,0.0004514,2]
[357363706,1744020576850,-831.51979763,0.00045396,30]
[357363707,1744020576871,-267.46074303,0.00045452,2]
[357363708,1744020576893,-12462.2181367,0.0004556,3]
[357363709,1744020576915,-7932.93725266,0.0004557,15]
[357363710,1744020576935,-500.0,0.000457,10]
[357363711,1744020576955,-3153.17924432,0.0004571,15]
[357363712,1744020576979,-300.0,0.00046,120]
[357363713,1744020576999,-496.32446825,0.00046,120]
[357363714,1744020577020,-1547.98399578,0.00046,120]
[357363715,1744020577042,-364.58,0.00046366,120]
[357363716,1744020577064,-151.0,0.00046575,30]
[357363717,1744020577084,-151.0,0.00046575,30]
[357363718,1744020577104,-277.35679052,0.00046821,2]
[357363719,1744020577125,-7932.93725266,0.00046874,15]
[357363720,1744020577146,-1126.05,0.00046941,120]
[357363721,1744020577166,-276.49,0.00047045,2]
[357363722,1744020577187,-883.24,0.00047404,2]
[357363723,1744020577207,-3153.17924432,0.00047958,15]
[357363724,1744020577228,-300.0,0.00048,120]
[357363725,1744020577249,-496.32446823,0.00048,120]
[357363726,1744020577274,-1547.98399579,0.00048,120]
[357363727,1744020577295,-500.0,0.00048,10]
[357363728,1744020577319,-500.0,0.00048,10]
[357363729,1744020577345,-164.26,0.00048131,2]
[357363730,1744020577368,-12462.2181367,0.00048168,4]
[357363731,1744020577391,-7932.93725266,0.00048178,15]
[357363732,1744020577413,-287.61899177,0.0004819,2]